fUST/lending_fUST_20240423
["ID","MTS","AMOUNT","RATE_DAILY","PERIOD"]
[323200699,1713803458821,-500.0,0.00023013,2]
[323200700,1713803458830,-500.0,0.00023013,2]
[323200701,1713803458840,-500.0,0.00023013,2]
[323200702,1713803458849,-500.0,0.00023013,2]
[323200703,1713803458858,-615.64,0.00023013,2]
[323200704,1713803458868,-500.0,0.00023013,2]
[323200705,1713803458878,-544.83,0.00023013,2]
[323200706,1713803458887,-500.0,0.00023013,2]
[323200707,1713803458897,-17777.59,0.00023013,2]
[323200708,1713803458906,-500.0,0.00023013,2]
[323200709,1713803458915,-500.0,0.00023013,2]
[323200710,1713803458924,-500.0,0.00023013,2]
[323200711,1713803458934,-3448.49,0.00023013,2]
[323200712,1713803458944,-500.0,0.00023013,2]
[323200713,1713803458953,-500.0,0.00023013,2]
[323200714,1713803458963,-2063.27,0.00023013,2]
[323200715,1713803458973,-500.0,0.00023013,2]
[323200716,1713803458983,-493.43862535,0.00023013,2]
[323200717,1713803458992,-500.0,0.00023013,2]
[323200718,1713803459002,-353.13838201,0.00023013,2]
[323200719,1713803459011,-500.0,0.00023013,2]
[323200720,1713803459020,-500.0,0.00023013,2]
[323200721,1713803459030,-536.1,0.00023013,2]
[323200722,1713803459040,-500.0,0.00023013,2]
[323200723,1713803459050,-500.0,0.00023013,2]
[323200724,1713803459059,-500.0,0.00023013,2]
[323200725,1713803459068,-500.0,0.00023013,2]
[323200726,1713803459078,-324.27888511,0.00023013,2]
[323200727,1713803459088,-958.49,0.00023013,2]
[323200728,1713803459098,-626.86,0.00023013,2]
[323200729,1713803459107,-6575.86,0.00023013,2]
[323200730,1713803459116,-150.83408251,0.00023105,2]
[323200731,1713803459126,-15395.55393793,0.000232,2]
[323200732,1713803459135,-203.93643357,0.000232,2]
[323200733,1713803459144,-500.0,0.00023287,2]
[323200734,1713803459153,-500.0,0.00023287,2]
[323200735,1713803459162,-500.0,0.00023287,2]
[323200736,1713803459171,-500.0,0.00023287,2]
[323200737,1713803459180,-500.0,0.00023287,2]
[323200738,1713803459189,-500.0,0.00023287,2]
[323200739,1713803459198,-500.0,0.00023287,2]
[323200740,1713803459207,-569.34768922,0.00023287,2]
[323200741,1713803459217,-528.24,0.00023287,2]
[323200742,1713803459226,-544.97,0.00023287,2]
[323200743,1713803459234,-257.32387391,0.00023287,2]
[323200744,1713803459244,-288.70651613,0.00023287,2]
[323200745,1713803459253,-500.0,0.00023287,2]
[323200746,1713803459262,-500.0,0.00023287,2]
[323200747,1713803459276,-559.79,0.00023287,2]
[323200748,1713803459311,-904.94,0.00023287,2]
[323200749,1713803459321,-500.0,0.00023287,2]
[323200750,1713803459330,-500.0,0.00023287,2]
[323200751,1713803459340,-1277.37,0.00023287,2]
[323200752,1713803459350,-500.0,0.00023287,2]
[323200753,1713803459359,-500.0,0.00023287,2]
[323200754,1713803459369,-500.0,0.00023287,2]
[323200755,1713803459379,-500.0,0.00023287,2]
[323200756,1713803459388,-1183.54,0.00023287,2]
[323200757,1713803459398,-500.0,0.00023287,2]
[323200758,1713803459407,-500.0,0.00023287,2]
[323200759,1713803459417,-663.87,0.00023287,2]
[323200760,1713803459427,-625.96,0.00023287,2]
[323200761,1713803459436,-500.0,0.00023287,2]
[323200762,1713803459445,-500.0,0.00023287,2]
[323200763,1713803459455,-500.0,0.00023287,2]
[323200764,1713803459464,-500.0,0.00023287,2]
[323200765,1713803459473,-885.23,0.00023287,2]
[323200766,1713803459482,-500.0,0.00023287,2]
[323200767,1713803459491,-500.0,0.00023287,2]
[323200768,1713803459500,-550.57825364,0.00023287,2]
[323200769,1713803459510,-500.0,0.00023287,2]
[323200770,1713803459524,-172.02414376,0.00023287,2]
[323200771,1713803459533,-500.0,0.00023287,2]
[323200772,1713803459543,-517.26,0.00023287,2]
[323200773,1713803459553,-527.47,0.00023287,2]
[323200774,1713803459562,-500.0,0.00023287,2]
[323200775,1713803459571,-500.0,0.00023287,2]
[323200776,1713803459581,-500.0,0.00023287,2]
[323200777,1713803459590,-500.0,0.00023287,2]
[323200778,1713803459599,-531.99,0.00023287,2]
[323200779,1713803459610,-500.0,0.00023287,2]
[323200780,1713803459619,-1948.33,0.00023287,2]
[323200781,1713803459628,-500.0,0.00023287,2]
[323200782,1713803459637,-500.0,0.00023287,2]
[323200783,1713803459647,-500.0,0.00023287,2]
[323200784,1713803459656,-500.0,0.00023287,2]
[323200785,1713803459665,-500.0,0.00023287,2]
[323200786,1713803459674,-627.86,0.00023287,2]
[323200787,1713803459684,-544.5,0.00023287,2]
[323200788,1713803459693,-500.0,0.00023287,2]
[323200789,1713803459702,-786.17,0.00023287,2]
[323200790,1713803459712,-505.48,0.00023287,2]
[323200791,1713803459721,-2183.24,0.00023287,2]
[323200792,1713803459730,-500.0,0.00023287,2]
[323200793,1713803459741,-500.0,0.00023287,2]
[323200794,1713803459750,-1145.36,0.00023287,2]
[323200795,1713803459760,-500.0,0.00023287,2]
[323200796,1713803459769,-1979.75,0.00023287,2]
[323200797,1713803459779,-500.0,0.00023287,2]
[323200798,1713803459789,-687.49,0.00023287,2]
[323200799,1713803459798,-500.0,0.00023287,2]
[323200800,1713803459807,-2805.14,0.00023287,2]
[323200801,1713803459817,-1457.76,0.00023287,2]
[323200802,1713803459826,-500.0,0.00023287,2]
[323200803,1713803459835,-500.0,0.00023287,2]
[323200804,1713803459845,-500.0,0.00023287,2]
[323200805,1713803459855,-500.0,0.00023287,2]
[323200806,1713803459864,-500.0,0.00023287,2]
[323200807,1713803459872,-307.26279336,0.00023287,2]
[323200808,1713803459882,-500.0,0.00023287,2]
[323200809,1713803459891,-500.0,0.00023287,2]
[323200810,1713803459900,-615.64,0.00023287,2]
[323200811,1713803459909,-500.0,0.00023287,2]
[323200812,1713803459919,-544.83,0.00023287,2]
[323200813,1713803459928,-500.0,0.00023287,2]
[323200814,1713803459938,-17777.59,0.00023287,2]
[323200815,1713803459949,-500.0,0.00023287,2]
[323200816,1713803459959,-500.0,0.00023287,2]
[323200817,1713803459968,-500.0,0.00023287,2]
[323200818,1713803459977,-3448.49,0.00023287,2]
[323200819,1713803459986,-500.0,0.00023287,2]
[323200820,1713803459995,-500.0,0.00023287,2]
[323200821,1713803460004,-2063.27,0.00023287,2]
[323200822,1713803460013,-500.0,0.00023287,2]
[323200823,1713803460022,-185.2978394,0.00023287,2]
[323200824,1713803460031,-500.0,0.00023287,2]
[323200825,1713803460041,-500.0,0.00023287,2]
[323200826,1713803460050,-536.1,0.00023287,2]
[323200827,1713803460059,-500.0,0.00023287,2]
[323200828,1713803460068,-500.0,0.00023287,2]
[323200829,1713803460077,-200.51736292,0.00023287,2]
[323200830,1713803460086,-500.0,0.00023287,2]
[323200831,1713803460095,-958.49,0.00023287,2]
[323200832,1713803460103,-626.86,0.00023287,2]
[323200833,1713803460112,-6575.86,0.00023287,2]
[323200834,1713803460121,-250.0,0.00023288,2]
[323200835,1713803460130,-1000.0,0.000234,2]
[323200836,1713803460138,-2000.0,0.000234,2]
[323200837,1713803460147,-2000.0,0.000234,2]
[323200838,1713803460156,-692.22910856,0.00023458,2]
[323200839,1713803460165,-500.0,0.00023561,2]
[323200840,1713803460173,-500.0,0.00023561,2]
[323200841,1713803460182,-452.14442945,0.00023561,2]
[323200842,1713803460191,-500.0,0.00023561,2]
[323200843,1713803460199,-500.0,0.00023561,2]
[323200844,1713803460208,-500.0,0.00023561,2]
[323200845,1713803460217,-500.0,0.00023561,2]
[323200846,1713803460226,-528.24,0.00023561,2]
[323200847,1713803460235,-544.97,0.00023561,2]
[323200848,1713803460244,-595.9535957,0.00023561,2]
[323200849,1713803460253,-500.0,0.00023561,2]
[323200850,1713803460261,-559.79,0.00023561,2]
[323200851,1713803460270,-904.94,0.00023561,2]
[323200852,1713803460279,-500.0,0.00023561,2]
[323200853,1713803460288,-500.0,0.00023561,2]
[323200854,1713803460296,-1277.37,0.00023561,2]
[323200855,1713803460305,-500.0,0.00023561,2]
[323200856,1713803460314,-500.0,0.00023561,2]
[323200857,1713803460426,-500.0,0.00023561,2]
[323200858,1713803460435,-500.0,0.00023561,2]
[323200859,1713803460444,-1183.54,0.00023561,2]
[323200860,1713803460453,-500.0,0.00023561,2]
[323200861,1713803460462,-500.0,0.00023561,2]
[323200862,1713803460472,-663.87,0.00023561,2]
[323200863,1713803460480,-625.96,0.00023561,2]
[323200864,1713803460489,-500.0,0.00023561,2]
[323200865,1713803460498,-500.0,0.00023561,2]
[323200866,1713803460511,-500.0,0.00023561,2]
[323200867,1713803460520,-500.0,0.00023561,2]
[323200868,1713803460529,-885.23,0.00023561,2]
[323200869,1713803460538,-500.0,0.00023561,2]
[323200870,1713803460547,-500.0,0.00023561,2]
[323200871,1713803460556,-500.0,0.00023561,2]
[323200872,1713803460565,-329.58950441,0.00023561,2]
[323200873,1713803460573,-517.26,0.00023561,2]
[323200874,1713803460583,-527.47,0.00023561,2]
[323200875,1713803460592,-500.0,0.00023561,2]
[323200876,1713803460601,-500.0,0.00023561,2]
[323200877,1713803460610,-207.66743292,0.00023561,2]
[323200878,1713803460619,-500.0,0.00023561,2]
[323200879,1713803460628,-531.99,0.00023561,2]
[323200880,1713803460636,-500.0,0.00023561,2]
[323200881,1713803460645,-1948.33,0.00023561,2]
[323200882,1713803460654,-500.0,0.00023561,2]
[323200883,1713803460663,-500.0,0.00023561,2]
[323200884,1713803460672,-500.0,0.00023561,2]
[323200885,1713803460681,-533.70997173,0.00023561,2]
[323200886,1713803460690,-500.0,0.00023561,2]
[323200887,1713803460699,-627.86,0.00023561,2]
[323200888,1713803460707,-544.5,0.00023561,2]
[323200889,1713803460716,-499.58308484,0.00023561,2]
[323200890,1713803460725,-786.17,0.00023561,2]
[323200891,1713803460734,-505.48,0.00023561,2]
[323200892,1713803460743,-2183.24,0.00023561,2]
[323200893,1713803460752,-500.0,0.00023561,2]
[323200894,1713803460761,-500.0,0.00023561,2]
[323200895,1713803460770,-1145.36,0.00023561,2]
[323200896,1713803460779,-500.0,0.00023561,2]
[323200897,1713803460789,-1979.75,0.00023561,2]
[323200898,1713803460798,-500.0,0.00023561,2]
[323200899,1713803460806,-687.49,0.00023561,2]
[323200900,1713803460815,-500.0,0.00023561,2]
[323200901,1713803460824,-2805.14,0.00023561,2]
[323200902,1713803460833,-1457.76,0.00023561,2]
[323200903,1713803460842,-500.0,0.00023561,2]
[323200904,1713803460851,-500.0,0.00023561,2]
[323200905,1713803460860,-500.0,0.00023561,2]
[323200906,1713803460869,-500.0,0.00023561,2]
[323200907,1713803460878,-500.0,0.00023561,2]
[323200908,1713803460887,-500.0,0.00023561,2]
[323200909,1713803460895,-500.0,0.00023561,2]
[323200910,1713803460904,-615.64,0.00023561,2]
[323200911,1713803460914,-500.0,0.00023561,2]
[323200912,1713803460922,-544.83,0.00023561,2]
[323200913,1713803460933,-500.0,0.00023561,2]
[323200914,1713803460942,-17777.59,0.00023561,2]
[323200915,1713803460951,-500.0,0.00023561,2]
[323200916,1713803460961,-500.0,0.00023561,2]
[323200917,1713803460969,-500.0,0.00023561,2]
[323200918,1713803460978,-3448.49,0.00023561,2]
[323200919,1713803460987,-500.0,0.00023561,2]
[323200920,1713803460996,-500.0,0.00023561,2]
[323200921,1713803461005,-2063.27,0.00023561,2]
[323200922,1713803461013,-500.0,0.00023561,2]
[323200923,1713803461022,-500.0,0.00023561,2]
[323200924,1713803461030,-500.0,0.00023561,2]
[323200925,1713803461040,-536.1,0.00023561,2]
[323200926,1713803461049,-500.0,0.00023561,2]
[323200927,1713803461058,-500.0,0.00023561,2]
[323200928,1713803461066,-500.0,0.00023561,2]
[323200929,1713803461075,-958.49,0.00023561,2]
[323200930,1713803461084,-626.86,0.00023561,2]
[323200931,1713803461094,-6575.86,0.00023561,2]
[323200932,1713803461103,-620.00000002,0.00023638,2]
[323200933,1713803461113,-170329.97733524,0.0002369,2]
[323200934,1713803461122,-2000.0,0.000238,2]
[323200935,1713803461131,-500.0,0.00023835,2]
[323200936,1713803461140,-216.2141276,0.00023835,2]
[323200937,1713803461149,-500.0,0.00023835,2]
[323200938,1713803461159,-344.32395781,0.00023835,2]
[323200939,1713803461168,-500.0,0.00023835,2]
[323200940,1713803461177,-500.0,0.00023835,2]
[323200941,1713803461187,-528.24,0.00023835,2]
[323200942,1713803461196,-544.97,0.00023835,2]
[323200943,1713803461206,-500.0,0.00023835,2]
[323200944,1713803461215,-559.79,0.00023835,2]
[323200945,1713803461224,-904.94,0.00023835,2]
[323200946,1713803461233,-500.0,0.00023835,2]
[323200947,1713803461243,-500.0,0.00023835,2]
[323200948,1713803461253,-1277.37,0.00023835,2]
[323200949,1713803461263,-500.0,0.00023835,2]
[323200950,1713803461273,-500.0,0.00023835,2]
[323200951,1713803461282,-500.0,0.00023835,2]
[323200952,1713803461296,-500.0,0.00023835,2]
[323200953,1713803461305,-1183.54,0.00023835,2]
[323200954,1713803461315,-552.0781793,0.00023835,2]
[323200955,1713803461324,-500.0,0.00023835,2]
[323200956,1713803461334,-663.87,0.00023835,2]
[323200957,1713803461343,-625.96,0.00023835,2]
[323200958,1713803461354,-500.0,0.00023835,2]
[323200959,1713803461363,-500.0,0.00023835,2]
[323200960,1713803461372,-500.0,0.00023835,2]
[323200961,1713803461381,-500.0,0.00023835,2]
[323200962,1713803461390,-885.23,0.00023835,2]
[323200963,1713803461399,-500.0,0.00023835,2]
[323200964,1713803461409,-500.0,0.00023835,2]
[323200965,1713803461418,-500.0,0.00023835,2]
[323200966,1713803461428,-517.26,0.00023835,2]
[323200967,1713803461437,-527.47,0.00023835,2]
[323200968,1713803461446,-500.0,0.00023835,2]
[323200969,1713803461455,-461.28616185,0.00023835,2]
[323200970,1713803461464,-531.34106117,0.00023835,2]
[323200971,1713803461473,-531.99,0.00023835,2]
[323200972,1713803461484,-500.0,0.00023835,2]
[323200973,1713803461493,-1948.33,0.00023835,2]
[323200974,1713803461503,-500.0,0.00023835,2]
[323200975,1713803461516,-500.0,0.00023835,2]
[323200976,1713803461525,-500.0,0.00023835,2]
[323200977,1713803461534,-500.0,0.00023835,2]
[323200978,1713803461545,-627.86,0.00023835,2]
[323200979,1713803461556,-544.5,0.00023835,2]
[323200980,1713803461567,-786.17,0.00023835,2]
[323200981,1713803461576,-505.48,0.00023835,2]
[323200982,1713803461585,-2183.24,0.00023835,2]
[323200983,1713803461594,-516.03003426,0.00023835,2]
[323200984,1713803461604,-500.0,0.00023835,2]
[323200985,1713803461614,-1145.36,0.00023835,2]
[323200986,1713803461623,-500.0,0.00023835,2]
[323200987,1713803461632,-1979.75,0.00023835,2]
[323200988,1713803461641,-500.0,0.00023835,2]
[323200989,1713803461651,-687.49,0.00023835,2]
[323200990,1713803461660,-500.0,0.00023835,2]
[323200991,1713803461670,-2805.14,0.00023835,2]
[323200992,1713803461679,-1457.76,0.00023835,2]
[323200993,1713803461688,-500.0,0.00023835,2]
[323200994,1713803461698,-372.38431752,0.00023835,2]
[323200995,1713803461708,-500.0,0.00023835,2]
[323200996,1713803461718,-500.0,0.00023835,2]
[323200997,1713803461727,-500.0,0.00023835,2]
[323200998,1713803461737,-392.67216178,0.00023835,2]
[323200999,1713803461747,-500.0,0.00023835,2]
[323201000,1713803461758,-615.64,0.00023835,2]
[323201001,1713803461767,-500.0,0.00023835,2]
[323201002,1713803461776,-544.83,0.00023835,2]
[323201003,1713803461785,-500.0,0.00023835,2]
[323201004,1713803461798,-17777.59,0.00023835,2]
[323201005,1713803461808,-500.0,0.00023835,2]
[323201006,1713803461817,-500.0,0.00023835,2]
[323201007,1713803461827,-500.0,0.00023835,2]
[323201008,1713803461836,-3448.49,0.00023835,2]
[323201009,1713803461846,-494.45805693,0.00023835,2]
[323201010,1713803461855,-500.0,0.00023835,2]
[323201011,1713803461865,-2063.27,0.00023835,2]
[323201012,1713803461874,-500.0,0.00023835,2]
[323201013,1713803461883,-372.44492545,0.00023835,2]
[323201014,1713803461893,-500.0,0.00023835,2]
[323201015,1713803461903,-536.1,0.00023835,2]
[323201016,1713803461912,-500.0,0.00023835,2]
[323201017,1713803461922,-500.0,0.00023835,2]
[323201018,1713803461932,-500.0,0.00023835,2]
[323201019,1713803461941,-958.49,0.00023835,2]
[323201020,1713803461951,-626.86,0.00023835,2]
[323201021,1713803461961,-6575.86,0.00023835,2]
[323201022,1713803461970,-3981.54325205,0.000239,2]
[323201023,1713803461979,-63735.86231978,0.00024,2]
[323201024,1713803461989,-283.0,0.00024,2]
[323201025,1713803461999,-1521.64726588,0.000241,10]
[323201026,1713803462008,-500.0,0.00024109,2]
[323201027,1713803462018,-500.0,0.00024109,2]
[323201028,1713803462027,-500.0,0.00024109,2]
[323201029,1713803462036,-500.0,0.00024109,2]
[323201030,1713803462046,-528.24,0.00024109,2]
[323201031,1713803462055,-544.97,0.00024109,2]
[323201032,1713803462064,-500.0,0.00024109,2]
[323201033,1713803462074,-559.79,0.00024109,2]
[323201034,1713803462083,-904.94,0.00024109,2]
[323201035,1713803462092,-584.15866641,0.00024109,2]
[323201036,1713803462101,-500.0,0.00024109,2]
[323201037,1713803462111,-1277.37,0.00024109,2]
[323201038,1713803462120,-500.0,0.00024109,2]
[323201039,1713803462129,-500.0,0.00024109,2]
[323201040,1713803462139,-500.0,0.00024109,2]
[323201041,1713803462149,-500.0,0.00024109,2]
[323201042,1713803462158,-1183.54,0.00024109,2]
[323201043,1713803462167,-500.0,0.00024109,2]
[323201044,1713803462177,-663.87,0.00024109,2]
[323201045,1713803462188,-625.96,0.00024109,2]
[323201046,1713803462197,-293.40665549,0.00024109,2]
[323201047,1713803462206,-500.0,0.00024109,2]
[323201048,1713803462215,-500.0,0.00024109,2]
[323201049,1713803462226,-500.0,0.00024109,2]
[323201050,1713803462236,-885.23,0.00024109,2]
[323201051,1713803462246,-500.0,0.00024109,2]
[323201052,1713803462255,-500.0,0.00024109,2]
[323201053,1713803462265,-500.0,0.00024109,2]
[323201054,1713803462274,-517.26,0.00024109,2]
[323201055,1713803462283,-527.47,0.00024109,2]
[323201056,1713803462294,-512.29381048,0.00024109,2]
[323201057,1713803462303,-531.99,0.00024109,2]
[323201058,1713803462312,-500.0,0.00024109,2]
[323201059,1713803462321,-1948.33,0.00024109,2]
[323201060,1713803462330,-500.0,0.00024109,2]
[323201061,1713803462339,-500.0,0.00024109,2]
[323201062,1713803462349,-500.0,0.00024109,2]
[323201063,1713803462358,-500.0,0.00024109,2]
[323201064,1713803462367,-627.86,0.00024109,2]
[323201065,1713803462376,-544.5,0.00024109,2]
[323201066,1713803462386,-786.17,0.00024109,2]
[323201067,1713803462395,-505.48,0.00024109,2]
[323201068,1713803462404,-2183.24,0.00024109,2]
[323201069,1713803462413,-500.0,0.00024109,2]
[323201070,1713803462423,-1145.36,0.00024109,2]
[323201071,1713803462433,-500.0,0.00024109,2]
[323201072,1713803462442,-1979.75,0.00024109,2]
[323201073,1713803462451,-500.0,0.00024109,2]
[323201074,1713803462461,-687.49,0.00024109,2]
[323201075,1713803462470,-500.0,0.00024109,2]
[323201076,1713803462480,-2805.14,0.00024109,2]
[323201077,1713803462490,-1457.76,0.00024109,2]
[323201078,1713803462500,-500.0,0.00024109,2]
[323201079,1713803462512,-500.0,0.00024109,2]
[323201080,1713803462523,-500.0,0.00024109,2]
[323201081,1713803462532,-500.0,0.00024109,2]
[323201082,1713803462542,-500.0,0.00024109,2]
[323201083,1713803462552,-615.64,0.00024109,2]
[323201084,1713803462561,-500.0,0.00024109,2]
[323201085,1713803462571,-544.83,0.00024109,2]
[323201086,1713803462581,-500.0,0.00024109,2]
[323201087,1713803462593,-17777.59,0.00024109,2]
[323201088,1713803462603,-500.0,0.00024109,2]
[323201089,1713803462612,-500.0,0.00024109,2]
[323201090,1713803462622,-500.0,0.00024109,2]
[323201091,1713803462631,-3448.49,0.00024109,2]
[323201092,1713803462641,-500.0,0.00024109,2]
[323201093,1713803462650,-2063.27,0.00024109,2]
[323201094,1713803462659,-456.15921014,0.00024109,2]
[323201095,1713803462668,-447.04919026,0.00024109,2]
[323201096,1713803462679,-536.1,0.00024109,2]
[323201097,1713803462688,-500.0,0.00024109,2]
[323201098,1713803462698,-500.0,0.00024109,2]
[323201099,1713803462707,-500.0,0.00024109,2]
[323201100,1713803462717,-958.49,0.00024109,2]
[323201101,1713803462726,-626.86,0.00024109,2]
[323201102,1713803462736,-6575.86,0.00024109,2]
[323201103,1713803462745,-4427.0,0.0002428,2]
[323201104,1713803462860,-417.0,0.00024288,2]
[323201105,1713803462870,-500.0,0.00024383,2]
[323201106,1713803462881,-500.0,0.00024383,2]
[323201107,1713803462891,-500.0,0.00024383,2]
[323201108,1713803462900,-500.0,0.00024383,2]
[323201109,1713803462911,-528.24,0.00024383,2]
[323201110,1713803462922,-544.97,0.00024383,2]
[323201111,1713803462931,-500.0,0.00024383,2]
[323201112,1713803462940,-559.79,0.00024383,2]
[323201113,1713803462950,-904.94,0.00024383,2]
[323201114,1713803462960,-500.0,0.00024383,2]
[323201115,1713803462970,-1277.37,0.00024383,2]
[323201116,1713803462981,-500.0,0.00024383,2]
[323201117,1713803462993,-500.0,0.00024383,2]
[323201118,1713803463003,-345.80830484,0.00024383,2]
[323201119,1713803463012,-500.0,0.00024383,2]
[323201120,1713803463021,-1183.54,0.00024383,2]
[323201121,1713803463030,-500.0,0.00024383,2]
[323201122,1713803463042,-663.87,0.00024383,2]
[323201123,1713803463051,-625.96,0.00024383,2]
[323201124,1713803463061,-500.0,0.00024383,2]
[323201125,1713803463070,-500.0,0.00024383,2]
[323201126,1713803463080,-500.0,0.00024383,2]
[323201127,1713803463089,-885.23,0.00024383,2]
[323201128,1713803463099,-500.0,0.00024383,2]
[323201129,1713803463108,-500.0,0.00024383,2]
[323201130,1713803463117,-500.0,0.00024383,2]
[323201131,1713803463127,-517.26,0.00024383,2]
[323201132,1713803463136,-527.47,0.00024383,2]
[323201133,1713803463145,-531.99,0.00024383,2]
[323201134,1713803463154,-500.0,0.00024383,2]
[323201135,1713803463163,-1948.33,0.00024383,2]
[323201136,1713803463173,-592.89195337,0.00024383,2]
[323201137,1713803463182,-500.0,0.00024383,2]
[323201138,1713803463191,-500.0,0.00024383,2]
[323201139,1713803463201,-500.0,0.00024383,2]
[323201140,1713803463210,-627.86,0.00024383,2]
[323201141,1713803463220,-544.5,0.00024383,2]
[323201142,1713803463229,-786.17,0.00024383,2]
[323201143,1713803463238,-505.48,0.00024383,2]
[323201144,1713803463247,-2183.24,0.00024383,2]
[323201145,1713803463257,-500.0,0.00024383,2]
[323201146,1713803463266,-1145.36,0.00024383,2]
[323201147,1713803463276,-500.0,0.00024383,2]
[323201148,1713803463286,-1979.75,0.00024383,2]
[323201149,1713803463299,-500.0,0.00024383,2]
[323201150,1713803463308,-687.49,0.00024383,2]
[323201151,1713803463318,-500.0,0.00024383,2]
[323201152,1713803463328,-2805.14,0.00024383,2]
[323201153,1713803463338,-1457.76,0.00024383,2]
[323201154,1713803463348,-500.0,0.00024383,2]
[323201155,1713803463359,-500.0,0.00024383,2]
[323201156,1713803463369,-500.0,0.00024383,2]
[323201157,1713803463379,-338.38930039,0.00024383,2]
[323201158,1713803463389,-500.0,0.00024383,2]
[323201159,1713803463398,-615.64,0.00024383,2]
[323201160,1713803463410,-500.0,0.00024383,2]
[323201161,1713803463419,-544.83,0.00024383,2]
[323201162,1713803463430,-500.0,0.00024383,2]
[323201163,1713803463440,-17777.59,0.00024383,2]
[323201164,1713803463450,-500.0,0.00024383,2]
[323201165,1713803463459,-500.0,0.00024383,2]
[323201166,1713803463469,-500.0,0.00024383,2]
[323201167,1713803463479,-3448.49,0.00024383,2]
[323201168,1713803463489,-500.0,0.00024383,2]
[323201169,1713803463498,-2063.27,0.00024383,2]
[323201170,1713803463508,-536.1,0.00024383,2]
[323201171,1713803463521,-420.29132134,0.00024383,2]
[323201172,1713803463532,-500.0,0.00024383,2]
[323201173,1713803463543,-500.0,0.00024383,2]
[323201174,1713803463553,-958.49,0.00024383,2]
[323201175,1713803463562,-626.86,0.00024383,2]
[323201176,1713803463573,-6575.86,0.00024383,2]
[323201177,1713803463583,-1141.0,0.000244,2]
[323201178,1713803463595,-5000.0,0.000245,2]
[323201179,1713803463604,-1000.0,0.00024578,2]
[323201180,1713803463614,-21336.16035762,0.000246,2]
[323201181,1713803463625,-1000.0,0.00024609,2]
[323201182,1713803463634,-1000.0,0.00024629,2]
[323201183,1713803463645,-1000.0,0.00024656,2]
[323201184,1713803463654,-500.0,0.00024657,2]
[323201185,1713803463663,-500.0,0.00024657,2]
[323201186,1713803463673,-500.0,0.00024657,2]
[323201187,1713803463683,-537.68018534,0.00024657,2]
[323201188,1713803463693,-528.24,0.00024657,2]
[323201189,1713803463702,-544.97,0.00024657,2]
[323201190,1713803463711,-500.0,0.00024657,2]
[323201191,1713803463721,-559.79,0.00024657,2]
[323201192,1713803463730,-904.94,0.00024657,2]
[323201193,1713803463739,-555.08952218,0.00024657,2]
[323201194,1713803463748,-1277.37,0.00024657,2]
[323201195,1713803463757,-500.0,0.00024657,2]
[323201196,1713803463766,-393.70128415,0.00024657,2]
[323201197,1713803463775,-1183.54,0.00024657,2]
[323201198,1713803463784,-617.7183494,0.00024657,2]